Cogmind - Beta 11 @@@ ROGUE MODE // 2022.03.23 @ 19:18:21 Player: Shadow Pussy wanter Result: Self-destructed Performance ------------- Evolutions (2) 1000 Regions Visited (3) 600 Robots Destroyed (40) 200 Value Destroyed (1027) 1027 Prototype IDs (2) 40 Alien Tech Used (0) 0 Bonus (68) 68 TOTAL SCORE: 2935 Bonus ------- High Alert Combat Kills 68 Cogmind --------- Core Integrity 353/550 Matter 300/300 Energy 100/100 System Corruption 0% Temperature Cool (0) Movement Rolling (100) Location -8/Materials Parts ------- > --- POWER (1) -------- (None) > --- PROPULSION (4) --- Compact Wheel > --- UTILITY (4) ------ Small Storage Unit Structural Scanner Signal Interpreter Hacking Suite > --- WEAPON (2) ------- Shotgun > --- INVENTORY (8) ---- Compact Wheel Improved Heat Sink Trap Scanner Improved Terrain Scanner Heavy Ion Cannon Heavy Ion Cannon Heavy Assault Rifle Mini Grenade Launcher Peak State ------------ > --- POWER ------------ Improved Ion Engine > --- PROPULSION ------- Aluminum Leg Aluminum Leg Aluminum Leg Compact Wheel > --- UTILITY ---------- Small Storage Unit Structural Scanner Signal Interpreter Hacking Suite > --- WEAPON ----------- Particle Gun Shotgun > --- INVENTORY -------- Improved Heat Sink Trap Scanner Improved Terrain Scanner Heavy EM Pulse Gun Heavy Ion Cannon Heavy Ion Cannon Heavy Assault Rifle Mini Grenade Launcher [Rating: 18] Favorites ----------- Power Light Ion Engine Engine Light Ion Engine Propulsion Aluminum Leg Leg Aluminum Leg Wheel Compact Wheel Flight Unit Improved Flight Unit Utility Small Storage Unit Device Structural Scanner Storage Small Storage Unit Processor Signal Interpreter Hackware Hacking Suite Weapon Assault Rifle Energy Gun Particle Gun Energy Cannon Advanced Beam Cannon Ballistic Gun Assault Rifle Build | -11 -10 -9 -8 ------- Run | Scr Mat Mat Mat Slots Evolved 4 | . . 2 2 Power . | . . . . Propulsion 2 | . . 1 1 Utility 2 | . . 1 1 Weapon . | . . . . Parts Attached 38 | 7 1 19 11 Power 4 | 1 . 2 1 Engine 4 | 1 . 2 1 Core . | . . . . Reactor . | . . . . Propulsion 17 | 2 . 11 4 Treads . | . . . . Leg 8 | . . 5 3 Wheel 8 | 2 . 5 1 Hover . | . . . . Flight 1 | . . 1 . Utility 8 | 2 . 2 4 Device 4 | 1 . 2 1 Storage 2 | 1 . . 1 Processor 1 | . . . 1 Hackware 1 | . . . 1 Protection . | . . . . Artifact . | . . . . Weapon 9 | 2 1 4 2 Energy Gun 4 | 1 . 3 . Energy Cannon 1 | . . . 1 Ballistic Gun 4 | 1 1 1 1 Ballistic Cannon . | . . . . Launcher . | . . . . Special Weapon . | . . . . Impact Weapon . | . . . . Slashing Weapon . | . . . . Piercing Weapon . | . . . . Special Melee Weapon . | . . . . Unidentified Prototypes 2 | . . 1 1 Parts Lost 17 | . . 11 6 Power 3 | . . 2 1 Propulsion 9 | . . 5 4 Utility 1 | . . 1 . Weapon 4 | . . 3 1 Highest Loss Streak 5 | . . 4 5 To Critical Strikes . | . . . . Average Slot Usage (%) 96 | . 100 95 96 Engine 10 | . 14 10 8 Leg 14 | . . 12 25 Wheel 16 | . 28 16 9 Device 17 | . 14 21 12 Storage 10 | . 14 11 9 Processor 2 | . . . 9 Hackware 1 | . . . 5 Energy Gun 9 | . 8 9 8 Ballistic Gun 12 | . 19 12 9 Naked Turns . | . . . . Heaviest Build 19 | 15 15 16 19 Greatest Support 30 | 26 26 26 30 Greatest Overweight (x) 4 | . . 4 1 Average Overweight (x) . | . . . . Largest Inventory Capacity 8 | 8 8 8 8 Average Capacity 7 | 7 8 8 8 Most Carried 8 | 7 8 8 8 Average Carried 7 | 4 7 7 7 Final Capacity 8 | 8 8 8 8 Final Carried 8 | 7 8 7 8 Class Distribution -------------------- 56% | Mutant 43% | Scavenger-Mutant Dominant Class ---------------- Mutant | -10/Materials Mutant | -9/Materials Scavenger-Mutant | -8/Materials Resources | -11 -10 -9 -8 ----------- Run | Scr Mat Mat Mat Matter Collected 895 | 279 52 387 177 Remotely 267 | 77 52 138 . Salvage Created 1421 | 91 91 893 346 Parts 80 | 3 8 56 13 Haulers Intercepted . | . . . . Recyclers Shooed 2 | . . . 2 Parts Field Recycled . | . . . . Retrieved Matter . | . . . . Parts Self-Destructed . | . . . . Prevented . | . . . . Kills | -11 -10 -9 -8 ------- Run | Scr Mat Mat Mat Combat Hostiles Destroyed 35 | . 6 24 5 Guns 35 | . 6 24 5 Classes Destroyed 8 | 1 1 5 1 Worker 1 | . . 1 . Recycler 3 | 1 . . 2 Watcher 1 | . . 1 . Swarmer 14 | . 6 8 . Grunt 13 | . . 11 2 Brawler 1 | . . 1 . Sentry 6 | . . 4 2 Hunter 1 | . . . 1 Best Kill Streak 6 | 1 3 6 3 Combat Bots Only 6 | . 3 6 2 Max Kills in Single Turn 1 | 1 1 1 1 Gunslinging . | . . . . Exploded . | . . . . Melee . | . . . . Uniques/NPCs Destroyed . | . . . . Combat | -11 -10 -9 -8 -------- Run | Scr Mat Mat Mat Damage Taken 2019 | . 110 1059 850 Core 497 | . 27 273 197 Absorbed by Shields . | . . . . Core Remaining (%) 73 | 100 89 31 . Volleys Fired 115 | 3 14 75 23 Largest 2 | 2 2 2 2 Hottest 115 | 70 70 115 88 Shots Fired 229 | 6 28 149 46 Gun 229 | 6 28 149 46 Cannon . | . . . . Launcher . | . . . . Special . | . . . . Kinetic 133 | 3 14 93 23 Thermal 96 | 3 14 56 23 Explosive . | . . . . Electromagnetic . | . . . . Robot Hit Streak 26 | 3 5 26 7 Robot Miss Streak 5 | 1 3 5 5 Penetration Max . | . . . . Secondary Targets 1 | . . . 1 Max Gunslinging Chain 1 | . . . 1 Shots Hit Robots 157 | 4 18 104 31 Core Hits 73 | 2 8 43 20 Critical Kills . | . . . . Critical Parts Destroyed . | . . . . Critical Strikes 5 | 1 2 2 . Burn 5 | 1 2 2 . Melee Attacks . | . . . . Impact . | . . . . Slashing . | . . . . Piercing . | . . . . Sneak Attacks . | . . . . Combat Hostiles . | . . . . Follow-up Attacks . | . . . . Damage Inflicted 2063 | 53 224 1295 491 Guns 2039 | 53 224 1282 480 Cannons . | . . . . Explosions 5 | . . . 5 Melee . | . . . . Ramming 19 | . . 13 6 Kinetic 1152 | 40 100 704 308 Thermal 887 | 13 124 578 172 Explosive . | . . . . Electromagnetic 5 | . . . 5 Impact . | . . . . Slashing . | . . . . Piercing . | . . . . Highest Corruption 3 | . . 3 . Average Corruption 3 | . . 3 . Corruption Purged . | . . . . Corruption Blocked . | . . . . Effects 1 | . . 1 . Heat Flow Errors 1 | . . 1 . Overload Shots . | . . . . Overflow Damage . | . . . . Projectiles . | . . . . Explosions . | . . . . Melee . | . . . . Knockbacks . | . . . . Impact . | . . . . Kinetic . | . . . . Secondary . | . . . . Self-Inflicted Damage 8 | . . 6 2 Shots . | . . . . Rammed 6 | . . 3 3 Targets Rammed 6 | . . 3 3 Kicked . | . . . . Crushed . | . . . . Highest Temperature 247 | 27 63 198 247 Average Temperature 67 | 14 24 87 66 Received Heat Transfer 684 | . . 306 378 Siege Activations . | . . . . Robots Corrupted . | . . . . Combat Hostiles . | . . . . Parts Fried . | . . . . Impact Corruptions . | . . . . Robots Melted . | . . . . Combat Hostiles . | . . . . Parts Melted 6 | . . 5 1 Heat Transferred 2691 | 111 518 1655 407 Parts Sabotaged . | . . . . Parts Stolen . | . . . . Parts Stripped . | . . . . Power Chain Reactions . | . . . . Missiles Intercepted . | . . . . Alert | -11 -10 -9 -8 ------- Run | Scr Mat Mat Mat Peak Influence 543 | 5 227 543 455 Initial 224 | . 3 95 224 Average 315 | 1 142 394 345 Maximum Alert Level 2 | . 1 2 2 Low Security (%) 18 | 100 47 10 . Level 1 44 | . 52 32 69 Level 2 36 | . . 56 30 Level 3 . | . . . . Level 4 . | . . . . Level 5 . | . . . . High Security . | . . . . Max Security . | . . . . Squads Dispatched 10 | . . 5 5 Investigation 2 | . . 2 . Extermination . | . . . . Reinforcement 5 | . . 3 2 Assault . | . . . . Garrison 3 | . . . 3 Intercept . | . . . . Searches Triggered . | . . . . Construction Impeded . | . . . . Haulers Reinforced . | . . . . Active Scanning Responses . | . . . . Cargo Convoy Interrupts . | . . . . Stealth | -11 -10 -9 -8 --------- Run | Scr Mat Mat Mat Distress Signals 3 | . 1 1 1 Communications Jammed . | . . . . Distress Signals . | . . . . Times Spotted 65 | . 9 34 22 Peak Tracking Total 13 | . 3 6 13 Tactical Retreats 2 | . 1 . 1 Traps | -11 -10 -9 -8 ------- Run | Scr Mat Mat Mat Traps Triggered 2 | . . 2 . Indirectly . | . . . . Trap Hack Attempts . | . . . . Triggered . | . . . . Disarmed . | . . . . Reprogrammed . | . . . . Reused . | . . . . Traps Extracted . | . . . . Installed . | . . . . Triggered . | . . . . Machines | -11 -10 -9 -8 ---------- Run | Scr Mat Mat Mat Machines Disabled 1 | . . . 1 Max in Single Turn 1 | . . . 1 Machines Sabotaged . | . . . . Garrisons Compromised . | . . . . Overloaded Fab Kills . | . . . . Hacking | -11 -10 -9 -8 --------- Run | Scr Mat Mat Mat Machines Accessed 6 | . 2 3 1 Terminals 6 | . 2 3 1 Fabricators . | . . . . Repair Stations . | . . . . Recycling Units . | . . . . Scanalyzers . | . . . . Garrison Access . | . . . . Total Hacks 13 | . 7 4 2 Successful 7 | . 4 2 1 Failed 5 | . 2 2 1 Catastrophic . | . . . . Database Lockouts 1 | . 1 . . Manual 14 | . 12 2 . Terminals 13 | . 7 4 2 Fabricators . | . . . . Repair Stations . | . . . . Recycling Units . | . . . . Scanalyzers . | . . . . Garrison Access . | . . . . Terminal Hacks 6 | . 3 2 1 Part Schematic 3 | . 2 1 . Robot Analysis 1 | . 1 . . Locate Traps 2 | . . 1 1 Fabricator Hacks . | . . . . Repair Station Hacks . | . . . . Recycling Unit Hacks . | . . . . Scanalyzer . | . . . . Garrison Access Hacks . | . . . . Unauthorized Hacks 1 | . 1 . . Terminals 1 | . 1 . . Assimilate 1 | . 1 . . Fabricators . | . . . . Repair Stations . | . . . . Recycling Units . | . . . . Scanalyzers . | . . . . Garrison Access . | . . . . Data Cores Recovered . | . . . . Used . | . . . . Hacking Detections 7 | . 4 2 1 Full Trace Events . | . . . . Feedback Events . | . . . . Feedback Blocked . | . . . . Robot Schematics Acquired . | . . . . Robots Built . | . . . . Authchips . | . . . . Time . | . . . . Total Robot Build Rating . | . . . . Part Schematics Acquired 3 | . 2 1 . Parts Built . | . . . . Authchips . | . . . . Time . | . . . . Total Part Build Rating . | . . . . Parts Repaired . | . . . . Time . | . . . . Parts Recycled . | . . . . Recycled Matter . | . . . . Retrieved Matter . | . . . . Retrieved Components . | . . . . Parts Scanalyzed . | . . . . Part Schematics Acquired . | . . . . Parts Damaged . | . . . . Bothacking | -11 -10 -9 -8 ------------ Run | Scr Mat Mat Mat Used RIF Installer . | . . . . Robots Hacked . | . . . . Non-combat . | . . . . Combat . | . . . . Robot Hacks Applied . | . . . . Relay Couplers Released . | . . . . Fabnet Peak Effective % . | . . . . Robots Rewired . | . . . . Allies Hacked . | . . . . Hacks Repelled . | . . . . Allies | -11 -10 -9 -8 -------- Run | Scr Mat Mat Mat Total Allies 1 | . 1 . . Largest Group 1 | . 1 1 . Highest-Rated Group 10 | . 10 10 . Highest-Rated Ally 10 | . 10 10 . Total Orders . | . . . . Ally Attacks . | . . . . Total Damage . | . . . . Kills . | . . . . Allies Corrupted . | . . . . Allies Melted . | . . . . Intel | -11 -10 -9 -8 ------- Run | Scr Mat Mat Mat Robot Analysis Total 1 | . 1 . . Derelict Logs Recovered . | . . . . Drone Launches . | . . . . Drone Recoveries . | . . . . Exploration | -11 -10 -9 -8 ------------- Run | Scr Mat Mat Mat Turns Passed 1391 | 80 234 669 408 Spaces Moved 829 | 60 187 336 246 Core 5 | 3 . 2 . Treads . | . . . . Legs 157 | . . 50 107 Wheels 667 | 57 187 284 139 Hover . | . . . . Flight . | . . . . Fastest Speed 50 | 50 90 90 100 Average Speed 101 | 89 90 100 113 Slowest Speed 250 | 100 90 250 120 Overloaded Moves . | . . . . Propulsion Burnouts . | . . . . Robots Hopped . | . . . . Cave-ins Triggered . | . . . . Exploration Rate (%) 28 | 4 44 36 28 Regions Visited 3 Branch Regions . Pre-discovered Areas . | . . . . Known Exits Taken . | . . . . Unknown Exits Taken 3 | 1 1 1 . Scrap Searched . | . . . . Spaces Dug . | . . . . Terrain Destroyed . | . . . . Melee . | . . . . Projectile . | . . . . AOE . | . . . . Terrain Rammed . | . . . . Walls Destroyed . | . . . . Machines Disabled . | . . . . Actions | -11 -10 -9 -8 --------- Run | Scr Mat Mat Mat Total 1154 | 76 225 520 333 Wait 124 | . 17 76 31 Move 826 | 59 186 335 246 Hop . | . . . . Pick Up 31 | 7 4 10 10 Fast Attach 10 | 7 . 2 1 Attach 15 | . . 11 4 Detach 1 | . . 1 . Swap 13 | . 1 6 6 Drop 13 | . 3 1 9 Fire 115 | 3 14 75 23 Melee . | . . . . Ram 6 | . . 3 3 Kick . | . . . . Crush . | . . . . Escape Stasis . | . . . . Rewire . | . . . . Trap . | . . . . Miscellaneous . | . . . . Route ------- -11/Scrapyard -10/Materials (discovered 2 exits: *Mat / [*Min]) -9/Materials -8/Materials History --------- Turn | Location | Event 13 | -11/Scrapyard | Discovered new exit (range 15) 81 | -11/Scrapyard | Entered Materials 138 | -10/Materials | Central database locked down 210 | -10/Materials | Discovered new exit (range 6) 255 | -10/Materials | Discovered new exit (range 16) 300 | -10/Materials | Build established: Mutant 315 | -10/Materials | Entered another Materials area 315 | -9/Materials | Accompanied by 1 ally 315 | -9/Materials | Evolved 2 slots: Propulsion x1, Utility x1 775 | -9/Materials | Core integrity fell below 50% 789 | -9/Materials | Lost 4 parts (3n1w) 969 | -9/Materials | Discovered new exit (range 16) 984 | -9/Materials | Entered another Materials area 984 | -8/Materials | Evolved 2 slots: Propulsion x1, Utility x1 1087 | -8/Materials | Garrison activated, responded to threat 1097 | -8/Materials | Build established: Scavenger-Mutant 1392 | -8/Materials | Self-destructed Last Messages --------------- 01297_ Acquired 10 matter. 01300_ Dropped Lgt. Ion Engine. 01305_ Dropped Com. Wheel. 01306_ Dropped Hvy. EM Pulse Gun. 01307_ Acquired Com. Wheel. 01335_ O-24 Administrator: "IFF HANDSHAKE FAILED. SECURING TERMINAL." 01341_ ALERT: Hostiles spotted, dispatching reinforcements to Terminal M009. 01352_ Aluminum Leg destroyed. 01355_ ALERT: Hostiles spotted, dispatching reinforcements to Terminal M011. 01363_ Critical hit (Burn: +37). 01365_ Imp. Ion Engine destroyed. 01371_ Particle Gun destroyed. 01380_ Slammed into U-05 Engineer. 01381_ Slammed into R-06 Scavenger. 01383_ Slammed into W-25 Informer. 01384_ C-30 ARC bursts open, deploying its payload. 01384_ S-10 Pest unfolds itself. 01384_ Aluminum Leg destroyed. Map ----- +----------------------------------------------------+ | ?????????????????????????????????????????????????? | | ?????????????????????????????????????????????????? | | ?????????????????????????????????????????????????? | | ?????????????????????????????????????????????????? | | ?????????????????????????????????????????????????? | | ?????????????????????????????????????????????????? | | ?????????????????????????????????????????????????? | | ?????????????????????????????????????????????????? | | ?????????????????????????????????????????????????? | | ?????????????????????????????????????????????????? | | ?????????????????????????????????????????????????? | | ?????????????????????????????????????????????????? | | ?????????????????????????????????????????????????? | | ?????????????????????????????????????????????????? | | ?????????????????????????????????????????????????? | | ?????????????????????? ?????????????????? | | ??????????????????????#######+###????????????????? | | ??????????????????????##!!] ###???????? ???????? | | ?????????????????????? #!]] ##??????## ???????? | | ?????????????????????? #!]] ##???## ?## ???????? | | ?????????????????????? # Y##???## ### # ?????? | | ?????????????????????? # [ ] [##???## ### # ?????? | | ?????????????????????? # ##????? / ?????? | | ???????????????????????####/####??????## # # | | ????????????????## ## s ########## ####+### | | ????????????????######+##@w ########## | | ???????????????? sT + # ^^ | | ????????????????#########%s # """ # ^^ | | ????????????????######### g # """"" # ^ | | ???????????????????????####g### """"" + ^ | | ??????????????############# ### """"? # | | ??????????????#############%##??? """? # ###### | | ??????????????## ### ### ? ? # ###### | | ??????????????## [### ### ?? ? # ##???? | | ??????????????## # # # ##???? | | ??????????????## # ########## ##???? | | ??????????????## + """ ##???? | | ??????????????## # # "T" ##???? | | ?????????????? # # # !! ##???? | | ?????????????? # ####### !! ##???? | | ?????????????? # ####### !! ##???? | | ?????????????? ########+####### ###??? | | ?????????????? ##### # ###??? | | ??????????????????## !!! # ? | | ??????????????????## !!! / | | ??????????????????## !! # | | ??????????????????## # ###### | | ??????????????????## """ ###+################## | | ??????????????????## """ # ###########???? | | ??????????????????## """ # """ ##????????????? | +----------------------------------------------------+ Best States ------------- Heat Dissipation 31 Coolant Potential 50 Energy Generation 12 Energy Capacity 265 Matter Stores 300 Matter Capacity 300 Sight Range 16 Terrain Scan Density 10 Evasion (%) 55 Offensive Hacking 10 Item Schematics ----------------- ECM Suite | -10/Materials | Hacked Sensor Array | -10/Materials | Hacked Signal Interpreter | -9/Materials | Hacked Robot Schematics ------------------ None Fabricated ------------ Nothing Alien Tech Used ----------------- None Achievements -------------- None Challenges ------------ None Game ------ Seed MediumAlphaKit Manual? 0 Play Time 00:24:10 Cumulative 40.9 hours Start 2022.03.23 @ 18:59:25 End 2022.03.23 @ 19:18:21 Sessions 1 Manual Loads 0 Difficulty Rogue Special Mode None Game No. 72 Rogue 72 Adventurer 0 Explorer 0 Win Type - Total 0 Types 0/0/0/0/0/0/0/0/0 Lore% 35 Gallery% 42 Achievement% 30 Wizard Run 0 Options --------- ASCII 0 Keyboard 0 Movement Numpad Keybinds 0 Fullscreen 1 Font 18/SmallcapsGlow Map View 76x50 Tactical HUD 1 Map Filters NONE Filters NONE Steam 1 RUN: c98982c9-9588-4c6c-83f5-dc9dbc1d73f9